Workbook

Sheet Formulario
B5: INGRESE LOS DATOS PARA SIMULAR EL VALOR TOTAL UNIFICADO DE DEPOSITOS DE AHORRO Y CORRIENTE
C8: Elija el Tipo de cuenta | D8: Cuenta Corriente
C9: Saldo de la Cuenta (UVT) | D9: 27.62137469
C10: Valor UVT en pesos | D10: 47065
C11: Saldo en pesos | D11: =$D$9*$D$10 -> 1300000
C12: Periodo de simulación (meses) | D12: 12
C13: Entrega Tarjeta Débito / Manilla de Pago | D13: Tarjeta Debito
C14: ¿Solicitará Tarjeta débito? | D14: Si
C15: ¿Solicitará Talonario? | D15: No
C16: ¿Solicitará Chequera? | D16: No
C17: ¿Qué tipo de Chequera? | D17: Cheque especial sin Logo

Sheet Variables (hidden)
B2: LISTA DESPLEGABLE
D3: actualizado tarifas 04/SEPTIEMBRE 2025 | E3: Sobre el saldo diario | H3: =+D3 -> actualizado tarifas 04/SEPTIEMBRE 2025
B4: Tipo de cuenta | D4: PRODUCTO | E4: TASA E.A | H4: Chequera | I4: Tarifa | J4: Tarifa + IVA 19%
B5: Cuenta Móvil Nomina | D5: Cuenta Móvil Nomina | E5: =+ahorro!M50 -> 0.0001 | H5: Cheque especial sin Logo | I5: =+[1]Tarifas!$M$78 -> 5250 | J5: =I5*1.19 -> 6247.5
B6: Cuenta Móvil / Villadiario / Rentavillas | D6: Cuenta Móvil / Villadiario / Rentavillas | E6: =+ahorro!M50 -> 0.0001 | H6: Cheque especial con Logo | I6: =+[1]Tarifas!$M$79 -> 5850 | J6: =I6*1.19 -> 6961.5
B7: Cuenta Convenio Sin Nomina | D7: Cuenta Convenio Sin Nomina | E7: =+ahorro!M50 -> 0.0001 | H7: Chequera de 15 cheques persona natural | I7: =+[1]Tarifas!$M$80 -> 123650 | J7: 147143.5
B8: Cuenta para Ahorrar Certivillas | D8: Cuenta para Ahorrar Certivillas | E8: =+Simulador!K16 -> 0.001 | F8: De 1M a 10M | H8: Chequera de 30 cheques persona natural o jurídica | I8: =+[1]Tarifas!$M$81 -> 275700 | J8: 328083
B9: AFC (Ahorro para el fomento de la construcción) | D9: AFC (Ahorro para el fomento de la construcción) | E9: =+Simulador!K15 -> 0.005 | F9: De 0 a 5M | H9: Chequera de 100 cheques persona natural o jurídica | I9: =+[1]Tarifas!$M$82 -> 836950 | J9: 995970.5
B10: Cuenta Plan Aval | D10: Cuenta Plan Aval | E10: =+ahorro!M45 -> 0.01
B11: Cuenta Ahorro Tramite Simplificado | D11: Cuenta Ahorro Tramite Simplificado | E11: 0.0001
B12: Rentavillas Junior | D12: Rentavillas Junior | E12: =+ahorro!M9 -> 0.0001
B13: Cuenta Corriente | D13: Cuenta Corriente | E13: 0
B14: Cuenta Premium | D14: Cuenta Premium | E14: =+Simulador!K14 -> 0.005
D16: actualizado tarifas 04/SEPTIEMBRE 2025 | H16: =+H3 -> actualizado tarifas 04/SEPTIEMBRE 2025
D17: Entrega medio de manejo (en apertura de cuenta) | E17: Tarifa | F17: Tarifa + IVA 19% | H17: Talonario | I17: Tarifa + IVA 19%
B18: Cupo | D18: Cuenta Móvil Nomina | E18: 0 | F18: =E18*1.19 -> 0 | H18: =+[1]Tarifas!$M$53 -> 99300 | I18: =H18*1.19 -> 118167
B19: 26.31 | D19: Cuenta Móvil / Villadiario / Rentavillas | E19: 0 | F19: =E19*1.19 -> 0 | H19: =+[1]Tarifas!$M$54 -> 116200 | I19: =H19*1.19 -> 138278
D20: Cuenta Convenio Sin Nomina | E20: 0 | F20: 0 | H20: =+H19 -> 116200 | I20: 138278
D21: Cuenta para Ahorrar Certivillas | E21: 0 | F21: 0 | H21: 0 | I21: 0
B22: Opciones | D22: AFC (Ahorro para el fomento de la construcción) | E22: 0 | F22: 0 | H22: 0 | I22: 0
B23: Si | D23: Cuenta Plan Aval | E23: 0 | F23: =E23*1.19 -> 0 | H23: =+[1]Tarifas!$M$46 -> 8700 | I23: =H23*1.19 -> 10353
B24: No | D24: Cuenta Ahorro Tramite Simplificado | E24: 0 | F24: =E24*1.19 -> 0 | H24: 0 | I24: =H24*1.19 -> 0
D25: Rentavillas Junior | E25: 0 | F25: =E25*1.19 -> 0 | H25: 0 | I25: =H25*1.19 -> 0
B26: Entrega | D26: Cuenta Premium | E26: 0 | F26: 0 | H26: =+H19 -> 116200 | I26: =H26*1.19 -> 138278
B27: Tarjeta Debito | D27: Cuenta Corriente | E27: 0 | F27: =E27*1.19 -> 0
B28: Manilla de Pago
B29: Tarjeta Debito y Manilla de Pago | D29: actualizado tarifas 04/SEPTIEMBRE 2025
D30: Cuota de manejo | E30: Tarifa | F30: Tarifa + IVA 19% | H30: No aplica tarjeta
B31: Chequeras | D31: Cuenta Móvil Nomina | E31: 0 | F31: =E31*1.19 -> 0 | H31: SIN IVA SEGU INFO DE LA FUENTE
B32: Cheque especial sin Logo | D32: Cuenta Móvil / Villadiario / Rentavillas | E32: =+[1]Tarifas!$M$10 -> 20900 | F32: =E32*1 -> 20900 | H32: SIN IVA SEGU INFO DE LA FUENTE
B33: Cheque especial con Logo | D33: Cuenta Convenio Sin Nomina | E33: =+E32 -> 20900 | F33: =E33*1 -> 20900 | H33: No aplica tarjeta
B34: Chequera de 15 cheques persona natural | D34: Cuenta para Ahorrar Certivillas | E34: 0 | F34: 0 | H34: No aplica tarjeta
B35: Chequera de 30 cheques persona natural o jurídica | D35: AFC (Ahorro para el fomento de la construcción) | E35: 0 | F35: 0 | H35: No aplica tarjeta
B36: Chequera de 100 cheques persona natural o jurídica | D36: Cuenta Plan Aval | E36: 0 | F36: =E36*1.19 -> 0 | H36: No aplica tarjeta
D37: Cuenta Ahorro Tramite Simplificado | E37: 0 | F37: =E37*1.19 -> 0 | H37: SIN IVA SEGU INFO DE LA FUENTE
D38: Rentavillas Junior | E38: =+[1]Tarifas!$M$13 -> 18850 | F38: =E38*1 -> 18850 | H38: SIN IVA SEGU INFO DE LA FUENTE
D39: Cuenta Premium | E39: =+E40 -> 20900 | F39: =E39*1 -> 20900
D40: Cuenta Corriente | E40: =+E33 -> 20900 | F40: =E40*1 -> 20900

Sheet Simulador
B5: SIMULACIÓN VALOR TOTAL UNIFICADO DE DE DEPOSITOS DE AHORRO Y CORRIENTE
C7: =TODAY() -> 2025-10-17
B8: Tipo de cuenta | C8: =Formulario!D8 -> Cuenta Corriente
B9: Saldo de la Cuenta (UVT) | C9: =Formulario!D9 -> 27.62137469
B10: Valor UVT en pesos | C10: =Formulario!D10 -> 47065
B11: Saldo en pesos | C11: =+Formulario!D11 -> 1300000
B12: Periodo de simulación (meses) | C12: =Formulario!D12 -> 12
B14: COBROS ASOCIADOS A LA CUENTA | J14: TASA CTA PREMIUM | K14: =+INDEX(ahorro!D62:H68,MATCH(Simulador!C11,ahorro!D62:D68,1),5) -> 0.005
B15: Entrega de medio de manejo (en apertura de cuenta) | C15: =SUM($P$25:$P$37) -> 0 | J15: TASA AFC | K15: =+INDEX(ahorro!F15:K19,MATCH(Simulador!C11,ahorro!F15:F19,1),6) -> 0.005
B16: Tarifa mes de Tarjeta Débito (Cuota de manejo) | C16: =-SUM($Q$25:$Q$37) -> 250800 | J16: TASA CERTIVILLAS | K16: =+INDEX(ahorro!D31:K37,MATCH(Simulador!C11,ahorro!D31:D37,1),8) -> 0.001
B17: Tarifa mes de Talonario | C17: =-SUM(R25:$R$37) -> 0
B18: Tarifa mes de Chequera | C18: =-SUM($S$25:$S$37) -> 0
J19: TEA | K19: =VLOOKUP(Formulario!$D$8,Variables!$D$5:$E$14,2,0) -> 0
B20: VALOR TOTAL UNIFICADO | J20: TNM | K20: =IFERROR((NOMINAL($K$19,12)/12),0) -> 0 | S20: VTUA% | T20: =IRR(T25:T37) -> -0.01582254523
B21: =IF(C21<0," Valor Total Unificado $ (Costo) "," Valor Total Unificado $") -> Valor Total Unificado $ (Costo) | C21: =(1+T20)^12-1 -> -0.1741884637
B22: Intereses | C22: =SUM(K26:K37) -> 0 | I22: FLUJO DEL CRÉDITO | N22: FLUJO DEL CLIENTE
I24: Periodo | J24: Capital | K24: Intereses | L24: Saldo | N24: Cupo | O24: Intereses | P24: Entrega medio de manejo (en apertura de cuenta | Q24: Cuota de manejo | R24: Talonario | S24: Chequera | T24: Saldo cliente
B25: Nota: | I25: 0 | L25: =$C$11 -> 1300000 | N25: =-L25 -> -1300000 | O25: 0 | P25: =-(VLOOKUP($C$8,Variables!$D$17:$F$27,3,0)) -> 0 | Q25: =-(VLOOKUP($C$8,Variables!$D$31:$F$40,3,0)) -> -20900 | R25: =IF(Formulario!$D$15="No",0,-VLOOKUP(Formulario!$D$8,Variables!$D$17:$I$26,6,0)) -> 0 | S25: =IFERROR(IF(Formulario!$D$16="No",0,-VLOOKUP(Formulario!$D$17,Variables!$H$4:$J$9,3,0)),0) -> 0 | T25: =SUM(N25:S25) -> -1320900
B26: De acuerdo a la Normatividad vigente, el Valor Total Unificado de las cuentas de Ahorro, Corriente y Depósitos Electrónicos, corresponde a la diferencia entre los intereses proyectados y los cobros asociados al producto, sin incluir cobros transaccionales, para una cuenta que presente un saldo mensual promedio equivalente a un Salario Mínimo Mensual Legal Vigente durante un período de 12 meses. Los valores aquí presentados resultan de una proyección por lo tanto no necesariamente corresponden a los valores que va a recibir o pagar con su producto. | I26: 1 | J26: =$L$25 -> 1300000 | K26: =J26*$K$20 -> 0 | L26: =$C$11 -> 1300000 | N26: 0 | O26: =K26 -> 0 | P26: =-(VLOOKUP($C$8,Variables!$D$17:$F$27,3,0)) -> 0 | Q26: =-(VLOOKUP($C$8,Variables!$D$31:$F$40,3,0)) -> -20900 | R26: 0 | S26: 0 | T26: =SUM(N26:S26) -> -20900
I27: =IF(AND(I26+1<=Formulario!$D$11,I26<>0),I26+1,0) -> 2 | J27: =$L$25 -> 1300000 | K27: =J27*$K$20 -> 0 | L27: 1300000 | N27: 0 | O27: =K27 -> 0 | P27: =-(VLOOKUP($C$8,Variables!$D$17:$F$27,3,0)) -> 0 | Q27: =-(VLOOKUP($C$8,Variables!$D$31:$F$40,3,0)) -> -20900 | R27: 0 | S27: 0 | T27: -20900
I28: =IF(AND(I27+1<=Formulario!$D$11,I27<>0),I27+1,0) -> 3 | J28: 1300000 | K28: 0 | L28: 1300000 | N28: 0 | O28: 0 | P28: =-(VLOOKUP($C$8,Variables!$D$17:$F$27,3,0)) -> 0 | Q28: =-(VLOOKUP($C$8,Variables!$D$31:$F$40,3,0)) -> -20900 | R28: 0 | S28: 0 | T28: -20900
I29: =IF(AND(I28+1<=Formulario!$D$11,I28<>0),I28+1,0) -> 4 | J29: 1300000 | K29: 0 | L29: 1300000 | N29: 0 | O29: 0 | P29: =-(VLOOKUP($C$8,Variables!$D$17:$F$27,3,0)) -> 0 | Q29: =-(VLOOKUP($C$8,Variables!$D$31:$F$40,3,0)) -> -20900 | R29: 0 | S29: 0 | T29: -20900
I30: =IF(AND(I29+1<=Formulario!$D$11,I29<>0),I29+1,0) -> 5 | J30: 1300000 | K30: 0 | L30: 1300000 | N30: 0 | O30: 0 | P30: =-(VLOOKUP($C$8,Variables!$D$17:$F$27,3,0)) -> 0 | Q30: =-(VLOOKUP($C$8,Variables!$D$31:$F$40,3,0)) -> -20900 | R30: 0 | S30: 0 | T30: -20900
I31: =IF(AND(I30+1<=Formulario!$D$11,I30<>0),I30+1,0) -> 6 | J31: 1300000 | K31: 0 | L31: 1300000 | N31: 0 | O31: 0 | P31: =-(VLOOKUP($C$8,Variables!$D$17:$F$27,3,0)) -> 0 | Q31: =-(VLOOKUP($C$8,Variables!$D$31:$F$40,3,0)) -> -20900 | R31: 0 | S31: 0 | T31: -20900
I32: =IF(AND(I31+1<=Formulario!$D$11,I31<>0),I31+1,0) -> 7 | J32: 1300000 | K32: 0 | L32: 1300000 | N32: 0 | O32: 0 | P32: =-(VLOOKUP($C$8,Variables!$D$17:$F$27,3,0)) -> 0 | Q32: =-(VLOOKUP($C$8,Variables!$D$31:$F$40,3,0)) -> -20900 | R32: 0 | S32: 0 | T32: -20900
I33: =IF(AND(I32+1<=Formulario!$D$11,I32<>0),I32+1,0) -> 8 | J33: 1300000 | K33: 0 | L33: 1300000 | N33: 0 | O33: 0 | P33: =-(VLOOKUP($C$8,Variables!$D$17:$F$27,3,0)) -> 0 | Q33: =-(VLOOKUP($C$8,Variables!$D$31:$F$40,3,0)) -> -20900 | R33: 0 | S33: 0 | T33: -20900
I34: =IF(AND(I33+1<=Formulario!$D$11,I33<>0),I33+1,0) -> 9 | J34: 1300000 | K34: 0 | L34: 1300000 | N34: 0 | O34: 0 | P34: =-(VLOOKUP($C$8,Variables!$D$17:$F$27,3,0)) -> 0 | Q34: =-(VLOOKUP($C$8,Variables!$D$31:$F$40,3,0)) -> -20900 | R34: 0 | S34: 0 | T34: -20900
I35: =IF(AND(I34+1<=Formulario!$D$11,I34<>0),I34+1,0) -> 10 | J35: 1300000 | K35: 0 | L35: 1300000 | N35: 0 | O35: 0 | P35: =-(VLOOKUP($C$8,Variables!$D$17:$F$27,3,0)) -> 0 | Q35: =-(VLOOKUP($C$8,Variables!$D$31:$F$40,3,0)) -> -20900 | R35: 0 | S35: 0 | T35: -20900
I36: =IF(AND(I35+1<=Formulario!$D$11,I35<>0),I35+1,0) -> 11 | J36: 1300000 | K36: 0 | L36: 1300000 | N36: 0 | O36: 0 | P36: =-(VLOOKUP($C$8,Variables!$D$17:$F$27,3,0)) -> 0 | Q36: =-(VLOOKUP($C$8,Variables!$D$31:$F$40,3,0)) -> -20900 | R36: 0 | S36: 0 | T36: -20900
I37: =IF(AND(I36+1<=Formulario!$D$11,I36<>0),I36+1,0) -> 12 | J37: 1300000 | K37: 0 | L37: 1300000 | N37: =L37 -> 1300000 | O37: 0 | P37: 0 | Q37: 0 | R37: 0 | S37: 0 | T37: 1300000

Sheet ahorro (hidden)
D6: TASAS CUENTAS DE AHORRO | H6: Vigencia: Desde Septiembre 1 de 2025
D8: RENTAVILLAS, RENTAVILLAS JUNIOR, RENTAVILLAS EMPRESARIAL
D9: Liquida la Tasa Base del 0,01% efectivo anual, sobre saldo diario. | M9: 0.0001
D11: AHORRO PARA EL FOMENTO DE LA CONSTRUCCIÓN (AFC)
F13: Rango | K13: Tasa E.A.
F15: 0 | H15: 5000000 | K15: 0.005
F16: 5000001 | H16: 20000000 | K16: 0.0075
F17: 20000001 | H17: 50000000 | K17: 0.01
F18: 50000001 | H18: 100000000 | K18: 0.0125
F19: 100000001 | H19: 100000000 | K19: 0.015
D22: 1. Para asignar la tasa de interés de la cuenta AFC, se debe tomar el saldo de capital promedio del mes y ubicarlo en la tabla de tasas de interés, según el rango del saldo del capital promedio.
D23: 2. Una vez establecida la tasa, se liquida sobre la suma de saldo mas intereses.
D27: CERTIVILLAS
D29: Rango | G29: Puntos Adicionales Int. Trimestral (*) | J29: Tasa Base Int. Diario (*)
D31: 0 | F31: 500000 | H31: 0,00% E.A. | K31: 0.0001
D32: 500001 | F32: 1000000 | H32: 0,00% E.A. | K32: 0.0005
D33: 1000001 | F33: 10000000 | H33: 1,75% E.A | K33: 0.001
D34: 10000001 | F34: 20000000 | H34: 2,75% E.A | K34: 0.0015
D35: 20000001 | F35: 50000000 | H35: 3,25% E.A | K35: 0.002
D36: 50000001 | F36: 100000000 | H36: 4,50% E.A | K36: 0.0025
D37: 100000001 | F37: 100000000 | H37: 5,50% E.A | K37: 0.003
D39: (*) La tasa base se liquida sobre saldo diario y se abona diariamente. Los puntos adicionales se liquidan sobre saldo promedio al final de cada trimestre a partir de la apertura de la cuenta.
D43: PLANAVAL
D45: Liquida la Tasa Base del 1.00% EA, sobre saldo diario. | M45: 0.01
D48: VILLADIARIO, CUENTA MOVIL, DEPOSITO DE BAJO MONTO, CUENTA DIGITAL
D50: Liquida la Tasa Base del 0.01% EA, sobre saldo diario. | M50: 0.0001
D53: CUENTAS CORRIENTES
D55: A las cuentas corrientes no se les reconoce rendimiento
D57: Las tasas aquí utilizadas se calculan de acuerdo con las definiciones dadas por la Superintendencia Financiera en la circular externa No.060/00
D59: CUENTA PREMIUM
D60: Rango | H60: Tasa E.A.
D62: 0 | F62: 5000000 | H62: 0.005
D63: 5000001 | F63: 20000000 | H63: 0.03
D64: 20000001 | F64: 50000000 | H64: 0.053
D65: 50000001 | F65: 100000000 | H65: 0.065
D66: 100000001 | F66: 250000000 | H66: 0.075
D67: 250000001 | F67: 500000000 | H67: 0.085
D68: 500000001 | F68: 500000000 | H68: 0.09
D70: (*) La tasa de interés se liquida sobre saldo diario y se abonan diariamente
D72: Las tasas de rentabilidad aquí utilizadas se calculan de acuerdo con las definiciones dadas por la Superintendencia Financiera en la circular externa No.060/00
